[Event "45th FIDE Olympiad 2024"]
[Site "Budapest"]
[Date "2024.09.16"]
[Round "6.5"]
[White "Rapport, Richard"]
[Black "Gukesh, D."]
[Result "1/2-1/2"]
[ECO "C67"]
[WhiteElo "2715"]
[BlackElo "2764"]
[Annotator "TA"]
[PlyCount "87"]
[EventDate "2024.09.05"]
[EventType "team-tourn"]
[EventCountry "HUN"]
[SourceTitle "playchess.com"]
[Source "ChessBase"]
[SourceQuality "1"]
[WhiteTeam "Hungary"]
[BlackTeam "India"]
[WhiteTeamCountry "HUN"]
[BlackTeamCountry "IND"]
[TimeControl "40/5400+30:1800+30"]

{[%evp 17,87,18,24,26,27,8,19,20,7,16,28,10,25,25,11,9,9,13,14,0,0,4,9,5,10,10,8,8,20,8,10,0,3,0,0,0,0,-10,-6,-6,-7,-20,-9,-9,0,0,0,-9,-12,-16,-8,-9,-8,-8,-8,-10,-8,-8,-8,-14,-8,-8,0,0,0,0,0,0,8,8,8,8]} 1. e4 {[%emt 0:01:09]} e5 {[%emt 0:00:06]} 2. Nf3 {[%emt 0:00:16]} Nc6 {[%emt 0:00:03]} 3. Bb5 {[%emt 0:00:22]} Nf6 {[%emt 0:00:08]} 4. O-O {[%emt 0:01:45]} Nxe4 {[%emt 0:00:06]} 5. Re1 {[%emt 0:00:04]} Nd6 {[%emt 0:00:06]} 6. Nxe5 {[%emt 0:00:08]} Be7 {[%emt 0:00:06]} 7. Bf1 {[%emt 0:00:04]} Nxe5 {[%emt 0:00:41]} 8. Rxe5 {[%emt 0:00:03]} O-O {[%emt 0:00:07]} 9. Nc3 {[%emt 0:03:01] C67: Ruy Lopez: Berlin Defence: 4 0-0 Nxe4.} Bf6 {[%emt 0:05:01]} 10. Re1 {[%emt 0:00:45]} Re8 {[%emt 0:01:40]} 11. Nd5 {[%emt 0:02:25]} Rxe1 {[%emt 0:00:14]} 12. Nxf6+ {[%emt 0:01:48]} Qxf6 {[%emt 0:00:05]} 13. Qxe1 {[%emt 0:00:03]} b6 {[%emt 0:00:05]} 14. d3 {[%emt 0:09:08]} Bb7 {[%emt 0:00:32]} 15. Qb4 {[%emt 0:00:10]} c5 {[%emt 0:26:41]} 16. Qf4 {[%emt 0:03:42]} Qxf4 {[%emt 0:00:07]} 17. Bxf4 {[%emt 0:00:04]} Nf5 {[%emt 0:00:12]} 18. f3 {[%emt 0:13:50]} f6 {[%emt 0:00:59]} 19. Kf2 {[%emt 0:01:20]} g5 $146 {[%emt 0:00:59]} ({Predecessor:} 19... Kf7 20. c3 Bd5 21. a4 g5 22. Bd2 a5 23. g4 Ne7 24. f4 h6 25. h3 Ng6 {½-½ Vokhidov,S (2536)-Niemann,H (2656) Sharjah Masters 5th 2022 (3)}) 20. Bd2 {[%emt 0:00:39]} h5 {[%emt 0:04:20]} 21. c3 {[%emt 0:02:10]} Kf7 {[%emt 0:00:38]} 22. Be2 {[%emt 0:03:19]} Bd5 {[%emt 0:07:42]} 23. Bd1 {[%emt 0:05:18]} Ng7 {[%emt 0:11:06]} 24. Ba4 {[%emt 0:03:40]} Rd8 {[%emt 0:01:16]} 25. Bc2 {[%emt 0:02:45]} h4 {[%emt 0:01:59]} 26. a4 {[%emt 0:04:02]} Ne6 {[%emt 0:03:41]} 27. a5 {[%emt 0:05:53]} b5 {[%emt 0:14:19]} 28. a6 {[%emt 0:00:52]} Rb8 {[%emt 0:03:37]} 29. Ra5 {[%emt 0:06:56]} d6 {[%emt 0:04:35]} 30. b4 {[%emt 0:01:07]} f5 {[%emt 0:01:20]} 31. bxc5 {[%emt 0:06:51]} dxc5 {[%emt 0:00:06]} 32. c4 {[%emt 0:00:24]} Bc6 {[%emt 0:02:36]} 33. cxb5 {[%emt 0:00:42]} Rxb5 {[%emt 0:00:58]} 34. Rxb5 {[%emt 0:01:25]} Bxb5 {[%emt 0:00:02]} 35. Bb3 {[%emt 0:00:50]} f4 {[%emt 0:01:57]} 36. g3 {[%emt 0:01:09]} fxg3+ {[%emt 0:01:40]} (36... Bxd3 37. Bxe6+ Kxe6 38. gxh4) 37. hxg3 {[%emt 0:00:17]} Bxd3 {[%emt 0:00:34]} 38. Be3 {[%emt 0:06:09]} hxg3+ {[%emt 0:02:27]} (38... Bxa6 39. Bxc5 Bb7 40. gxh4 $14 (40. Bxe6+ Kxe6 41. Bxa7 Ke7 $11)) (38... c4 {keeps more tension.} 39. Ba4 h3 40. Bxa7 c3) 39. Kxg3 {[%emt 0:00:10]} Kf6 {[%emt 0:01:10]} (39... Bxa6 40. Bxc5 (40. Bxe6+ Kxe6 41. Bxc5 Bc8 $16) 40... Bc8 41. Bxa7 $16) 40. Bxe6 {[%emt 0:00:12]} Kxe6 {[%emt 0:00:02]} 41. Bxc5 {[%emt 0:30:07]} Bxa6 {[%emt 0:30:04]} 42. f4 {[%emt 0:00:04]} gxf4+ {[%emt 0:00:04]} 43. Kxf4 {[%emt 0:00:02]} Kd5 {[%emt 0:00:04]} 44. Bxa7 {[%emt 0:00:03]} 1/2-1/2

[Event "45th FIDE Olympiad 2024"]
[Site "Budapest"]
[Date "2024.09.16"]
[Round "6.5"]
[White "Asante, Debesai Zerabruk"]
[Black "Isaakidis, Alexandros"]
[Result "0-1"]
[WhiteElo "1908"]
[BlackElo "2155"]
[PlyCount "92"]
[EventDate "2024.09.05"]
[EventType "team-tourn"]
[EventCountry "HUN"]
[WhiteTeam "Eritrea"]
[BlackTeam "Cyprus"]
[WhiteTeamCountry "ERI"]
[BlackTeamCountry "CYP"]
[TimeControl "40/5400+30:1800+30"]

1. e4 c6 2. d4 d5 3. Nc3 dxe4 4. Nxe4 Nf6 5. Nxf6+ exf6 6. Nf3 Bd6 7. Be2 O-O 8. O-O Re8 9. h3 Nd7 10. c4 f5 11. Qc2 Nf6 12. Bg5 h6 13. Bxf6 Qxf6 14. Rad1 g5 15. c5 Bc7 16. Nh2 Be6 17. Bc4 Rad8 18. Qc3 Bxc4 19. Qxc4 Re4 20. Qb3 b6 21. cxb6 Bxb6 22. d5 cxd5 23. Rxd5 Rxd5 24. Qxd5 Re2 25. b4 Qe6 26. Qd3 Rxa2 27. Nf3 Qe2 28. Qxe2 Rxe2 29. Rc1 Rxf2 30. Kh2 Rb2 31. Rc4 f4 32. Re4 f6 33. Rc4 h5 34. Re4 f5 35. Re5 Bf2 36. Rxf5 Bg3+ 37. Kh1 Rb1+ 38. Ng1 Bf2 39. Rxg5+ Kh7 40. Rf5 h4 41. Rxf4 Rxg1+ 42. Kh2 Bg3+ 43. Kxg1 Bxf4 44. b5 Kg6 45. Kf2 Kf5 46. Kf3 Bg3 {0-} 0-1

[Event "45th FIDE Olympiad 2024"]
[Site "Budapest"]
[Date "2024.09.16"]
[Round "6.6"]
[White "Praggnanandhaa, R."]
[Black "Leko, Peter"]
[Result "1/2-1/2"]
[ECO "C54"]
[WhiteElo "2750"]
[BlackElo "2666"]
[Annotator "TA"]
[PlyCount "89"]
[EventDate "2024.09.05"]
[EventType "team-tourn"]
[EventCountry "HUN"]
[SourceTitle "playchess.com"]
[Source "ChessBase"]
[SourceQuality "1"]
[WhiteTeam "India"]
[BlackTeam "Hungary"]
[WhiteTeamCountry "IND"]
[BlackTeamCountry "HUN"]
[TimeControl "40/5400+30:1800+30"]

{[%evp 14,89,31,29,43,37,35,18,15,18,18,12,26,9,0,0,0,-31,-16,-18,-22,-31,-10,-18,-14,-39,-25,-30,-22,-26,-25,-21,-18,-25,-19,-23,0,-31,0,0,0,0,0,0,19,0,6,3,6,0,7,8,2,0,13,0,0,0,0,0,0,0,2,0,8,0,0,0,12,0,0,0,20,0,0,0,12,0]} 1. e4 {[%emt 0:01:03]} e5 {[%emt 0:00:24]} 2. Nf3 {[%emt 0:00:07]} Nc6 {[%emt 0:00:08]} 3. Bc4 {[%emt 0:00:14]} Bc5 {[%emt 0:00:21]} 4. d3 {[%emt 0:00:10]} Nf6 {[%emt 0:00:13]} 5. Bg5 {[%emt 0:00:15]} h6 {[%emt 0:00:21]} 6. Bh4 {[%emt 0:00:06]} d6 {[%emt 0:00:20]} 7. c3 {[%emt 0:00:06]} a5 {[%emt 0:00:14] C54: Giuoco Piano: 4 c3 Nf6, main lines with 5 d4 and 5 d3.} 8. O-O {[%emt 0:00:10]} g5 {[%emt 0:00:54] 8...Ba7 injects fresh life into this line.} 9. Bg3 {[%emt 0:00:20]} O-O {[%emt 0:00:32]} 10. Na3 $146 {[%emt 0:00:29]} ({Predecessor:} 10. Nbd2 Ba7 11. Kh1 Bg4 12. h3 Bh5 13. a3 Ne7 14. Bh2 g4 15. hxg4 Nxg4 16. Bg3 {½-½ Firouzja,A (2777)-So,W (2753) Chess.com Speed Chess blitz 2023 (2.31)}) 10... Bxa3 {[%emt 0:12:49]} 11. bxa3 {[%emt 0:00:02]} Bg4 {[%emt 0:00:36]} 12. Re1 {[%emt 0:07:20]} Kg7 {[%emt 0:12:56]} 13. Rb1 {[%emt 0:07:05]} Rb8 {[%emt 0:01:11]} 14. d4 {[%emt 0:21:41]} Nh5 {[%emt 0:04:42]} 15. Re3 {[%emt 0:09:46]} Nf4 {[%emt 0:13:13]} 16. h3 {[%emt 0:07:33]} Bh5 {[%emt 0:02:10]} 17. Qd2 {[%emt 0:00:20]} Qf6 {[%emt 0:03:07]} 18. Kh2 {[%emt 0:11:54]} b6 {[%emt 0:13:37]} 19. Bb5 {[%emt 0:05:03]} Nd8 {[%emt 0:04:16]} 20. Ne1 {[%emt 0:01:51]} Nde6 {[%emt 0:00:20]} 21. Nc2 {[%emt 0:00:56]} Bg6 {[%emt 0:04:04]} 22. f3 {[%emt 0:02:53]} h5 {[%emt 0:03:30]} 23. Rf1 {[%emt 0:01:29]} h4 {[%emt 0:05:12]} 24. Bf2 {[%emt 0:01:47]} Nh5 {[%emt 0:06:15]} 25. Kg1 {[%emt 0:01:22]} Kh7 {[%emt 0:03:10]} 26. Rd1 {[%emt 0:01:40]} Rbd8 {[%emt 0:00:24]} 27. Ree1 {[%emt 0:02:13]} Nhf4 {[%emt 0:00:46]} 28. Ne3 {[%emt 0:04:30]} Qg7 {[%emt 0:00:44]} 29. Qb2 {[%emt 0:02:54]} f6 {[%emt 0:00:58]} 30. Rd2 {[%emt 0:00:22]} Qe7 {[%emt 0:00:56]} 31. Red1 {[%emt 0:01:14]} Kh8 {[%emt 0:01:52]} 32. Qb3 {[%emt 0:01:19]} Qh7 {[%emt 0:01:00]} 33. Bc4 {[%emt 0:00:58]} Rde8 {[%emt 0:01:04]} 34. Qb5 {[%emt 0:03:29]} Re7 {[%emt 0:00:18]} 35. Bf1 {[%emt 0:00:40]} Be8 {[%emt 0:00:36]} 36. Qb2 {[%emt 0:00:39]} Bg6 {[%emt 0:00:11]} 37. Re1 {[%emt 0:00:49]} Ree8 {[%emt 0:00:46]} 38. Qc1 {[%emt 0:01:39]} Re7 {[%emt 0:00:30]} 39. Qd1 {[%emt 0:00:18]} Ree8 {[%emt 0:01:03]} 40. Qa1 {[%emt 0:01:04]} Re7 {[%emt 0:00:35]} 41. Qc1 {[%emt 0:06:03]} Ree8 {[%emt 0:01:37]} 42. Qb2 {[%emt 0:03:09]} Re7 {[%emt 0:01:25]} 43. Rdd1 {[%emt 0:05:32]} Ree8 {[%emt 0:01:16]} 44. Rd2 {[%emt 0:03:01]} Re7 {[%emt 0:00:23]} 45. Rdd1 {[%emt 0:01:01]} 1/2-1/2

[Event "45th FIDE Olympiad 2024"]
[Site "Budapest"]
[Date "2024.09.16"]
[Round "6.6"]
[White "Antoniou, Rafail"]
[Black "Kibrom, Weldegebriel Beraki"]
[Result "1-0"]
[WhiteElo "2007"]
[BlackElo "1885"]
[PlyCount "151"]
[EventDate "2024.09.05"]
[EventType "team-tourn"]
[EventCountry "HUN"]
[WhiteTeam "Cyprus"]
[BlackTeam "Eritrea"]
[WhiteTeamCountry "CYP"]
[BlackTeamCountry "ERI"]
[TimeControl "40/5400+30:1800+30"]

1. c4 Nf6 2. Nf3 e6 3. g3 d5 4. Bg2 c6 5. b3 Bd6 6. Bb2 Nbd7 7. d4 O-O 8. O-O Ne4 9. Nbd2 f5 10. Ne1 Nxd2 11. Qxd2 Nf6 12. Nd3 Qe7 13. f3 b6 14. Rac1 Bd7 15. c5 bxc5 16. dxc5 Bc7 17. Be5 Rfc8 18. Qf4 Bxe5 19. Qxe5 Be8 20. e4 Nd7 21. Qd6 Qf6 22. exf5 exf5 23. Rfe1 Qxd6 24. cxd6 Rab8 25. Re7 g6 26. g4 Rd8 27. Rxc6 Nf8 28. Ra6 Bb5 29. Nc5 Bxa6 30. Nxa6 Rb6 31. Rxa7 Rdxd6 32. Nc5 Rdc6 33. Ra5 d4 34. Bf1 Kg7 35. gxf5 gxf5 36. Bd3 f4 37. Be4 Rd6 38. Nd3 Ng6 39. Rc5 Rb8 40. Rc7+ Kh6 41. Nf2 Nf8 42. Kg2 Rbd8 43. Nd3 Ng6 44. a4 Ra6 45. Nc5 Rad6 46. Nd3 Ra6 47. Kf2 Ra5 48. Rc5 Rxc5 49. Nxc5 Ne5 50. Ke2 Rg8 51. a5 Rg2+ 52. Kd1 Rxh2 53. a6 Ra2 54. Na4 d3 55. a7 Ra1+ 56. Kd2 Ra2+ 57. Kc3 Rc2+ 58. Kd4 Rc8 59. a8=Q d2 60. Nb2 Rxa8 61. Bxa8 Nd7 62. Kc3 Kg5 63. Kxd2 Kh4 64. Nd1 Kg3 65. Nc3 Ne5 66. Ne2+ Kf2 67. Nxf4 Nxf3+ 68. Bxf3 Kxf3 69. Nh5 h6 70. b4 Kg4 71. b5 Kxh5 72. b6 Kg4 73. b7 h5 74. b8=Q Kh3 75. Qf4 h4 76. Ke2 1-0

[Event "45th FIDE Olympiad 2024"]
[Site "Budapest"]
[Date "2024.09.16"]
[Round "6.7"]
[White "Sjugirov, Sanan"]
[Black "Erigaisi, Arjun"]
[Result "0-1"]
[ECO "C60"]
[WhiteElo "2644"]
[BlackElo "2778"]
[Annotator "TA"]
[PlyCount "114"]
[EventDate "2024.09.05"]
[EventType "team-tourn"]
[EventCountry "HUN"]
[SourceTitle "playchess.com"]
[Source "ChessBase"]
[SourceQuality "1"]
[WhiteTeam "Hungary"]
[BlackTeam "India"]
[WhiteTeamCountry "HUN"]
[BlackTeamCountry "IND"]
[TimeControl "40/5400+30:1800+30"]

{[%evp 18,114,24,23,31,12,18,17,16,26,27,7,20,17,24,24,15,0,0,0,5,0,0,0,0,0,0,0,0,-4,-5,-29,-22,-20,-20,-37,-31,-98,-92,-102,-91,-97,-104,-103,-43,-103,-99,-90,-96,-100,-81,-152,-8,-8,-4,-4,-4,-4,-4,-18,-17,-58,-60,-55,-63,-128,-106,-311,-308,-304,-282,-293,-272,-308,-273,-274,-212,-568,-343,-677,-633,-653,-687,-1110,-1093,-989,-918,-1293,-1267,-11509,-10782,-29973,-29975,-29974,-29976,-29982,-29983,-29983,-29984]} 1. e4 {[%emt 0:00:05]} e5 {[%emt 0:00:12]} 2. Nf3 {[%emt 0:00:10]} Nc6 {[%emt 0:00:06]} 3. Bb5 {[%emt 0:00:45]} a6 {[%emt 0:00:07]} 4. Ba4 {[%emt 0:00:06]} Nf6 {[%emt 0:00:06]} 5. O-O {[%emt 0:00:23]} d6 {[%emt 0:00:14]} 6. Re1 {[%emt 0:10:38]} Bd7 {[%emt 0:00:24]} 7. c3 {[%emt 0:03:27][%cal Bc2c3,Bc3d4,Bd4d5][%mdl 32]} g6 {[%emt 0:00:29]} 8. d4 {[%emt 0:00:47]} Bg7 {[%emt 0:00:06]} 9. h3 {[%emt 0:05:00]} O-O {[%emt 0:00:10]} 10. Nbd2 {[%emt 0:00:37]} exd4 {[%emt 0:00:21]} 11. cxd4 {[%emt 0:05:34]} Nb4 {[%emt 0:02:37]} 12. Bxd7 {[%emt 0:05:57]} Qxd7 {[%emt 0:00:07] The position is equal.} 13. Qb3 {[%emt 0:24:07]} a5 {[%emt 0:00:08]} 14. a3 {[%emt 0:02:05]} Nc6 {[%emt 0:00:07][%cal Bb4c6,Bc6b8,Bb8a6,Ba6c5][%mdl 32]} 15. d5 {[%emt 0:04:15]} (15. Qxb7 $2 Rfb8 $19) 15... Nb8 {[%emt 0:00:07]} 16. Qxb7 {[%emt 0:04:47]} Na6 {[%emt 0:02:08]} 17. Qb3 {[%emt 0:00:08]} Nc5 {[%emt 0:01:14]} 18. Qc4 {[%emt 0:02:10] White wants to play e5.} Qa4 {[%emt 0:00:15]} 19. e5 {[%emt 0:01:32]} (19. Qxa4 {simplifies} Nxa4 20. b3 Nc5 21. Ra2) 19... Qxc4 {[%emt 0:03:23]} 20. Nxc4 {[%emt 0:00:04]} dxe5 {[%emt 0:00:42]} 21. Nfxe5 {[%emt 0:01:45]} Nxd5 {[%emt 0:14:32]} 22. Rd1 {[%emt 0:00:25]} Nb6 {[%emt 0:02:47]} 23. Be3 {[%emt 0:02:26]} Nca4 {[%emt 0:13:04][%cal Oa4b2]} 24. Bd4 {[%emt 0:21:39]} Rad8 {[%emt 0:05:35]} 25. Bxb6 {[%emt 0:02:28]} (25. Nxa5 $2 Rxd4 26. Rxd4 Bxe5 $19) 25... cxb6 {[%emt 0:01:03]} 26. Nd7 {[%emt 0:00:01] A dynamic duo of knights.} Rfe8 {[%emt 0:00:26] aiming for ...b5.} (26... Nxb2 $2 27. Nxb2 (27. Ncxb6 $2 Nxd1 28. Rxd1 Rfe8 $19) 27... Bxb2 28. Nxf8 Rxf8 29. Ra2 $18) 27. Ndxb6 {[%emt 0:00:46]} (27. Rd6 $1 $15) 27... Nxb6 $17 {[%emt 0:00:26]} 28. Nxb6 {[%emt 0:00:18]} Bxb2 {[%emt 0:00:05]} 29. Rxd8 {[%emt 0:00:21]} Rxd8 $15 {[%emt 0:00:05][%mdl 4096] Endgame. KRB-KRN} 30. Ra2 {[%emt 0:00:02]} Rd1+ {[%emt 0:01:07]} 31. Kh2 {[%emt 0:00:01]} Bd4 {[%emt 0:00:02]} 32. Nc4 {[%emt 0:01:23]} a4 {[%emt 0:00:01]} 33. g3 {[%emt 0:02:10]} Bc5 {[%emt 0:14:32]} 34. Rc2 {[%emt 0:00:29]} (34. Kg2 $142) 34... Rd4 {[%emt 0:00:07] Black is more active.} ({Better is} 34... Ra1 $17 35. Nb2 Ra2 (35... Bxa3 36. Nxa4 Bb4 37. Nb6 $11) 36. Rxc5 Rxb2) 35. Kg2 {[%emt 0:00:30]} Kf8 {[%emt 0:01:14]} 36. Rc3 {[%emt 0:00:26]} Ke7 {[%emt 0:00:47]} 37. Ne5 {[%emt 0:00:16]} (37. Na5 $5 Rd5 $8 38. Rc4 $11) 37... Rd5 {[%emt 0:00:05]} 38. Nd3 {[%emt 0:00:29]} Bb6 {[%emt 0:09:42]} 39. Kf3 {[%emt 0:00:14]} Rb5 {[%emt 0:01:56]} 40. Ke2 {[%emt 0:01:05]} Rb3 $1 {[%emt 0:01:09]} 41. Nb4 {[%emt 0:26:09]} Kd7 $1 $17 {[%emt 0:06:24]} ({Much worse is} 41... Rxc3 $6 42. Nd5+ Kd6 43. Nxc3 $11) 42. Rd3+ {[%emt 0:00:47] White does not recover from this.} (42. Rc4 $17) 42... Rxd3 $19 {[%emt 0:04:46]} 43. Nxd3 {[%emt 0:00:04] KB-KN} Kc6 {[%emt 0:00:04]} 44. Kd2 {[%emt 0:01:16]} Bd4 {[%emt 0:04:20]} 45. f3 {[%emt 0:01:44]} Kd5 {[%emt 0:00:05]} 46. Kc2 {[%emt 0:00:40]} Bg7 {[%emt 0:06:40]} ({Don't do} 46... Kc4 47. g4 $17) 47. h4 $2 {[%emt 0:01:17]} (47. g4 {nothing else works.}) 47... Bf6 {[%emt 0:08:29] ...Kd4 would now be deadly.} 48. Kd2 $2 {[%emt 0:00:15]} (48. Nf2 Be7 49. g4) 48... Kc4 {[%emt 0:03:48]} 49. Kc2 {[%emt 0:00:03]} h5 {[%emt 0:01:08]} 50. g4 {[%emt 0:01:56]} hxg4 {[%emt 0:00:09]} 51. fxg4 {[%emt 0:00:00]} Bxh4 {[%emt 0:00:00]} 52. Ne5+ {[%emt 0:00:11]} Kd5 {[%emt 0:00:00]} 53. Nxf7 {[%emt 0:00:02]} Bf6 $1 {[%emt 0:00:00] ( -> ...Ke6)} 54. Kd3 {[%emt 0:01:45] [#]} Ke6 $1 {[%emt 0:00:03] Black mates.} 55. Nh6 {[%emt 0:00:06]} Bg5 {[%emt 0:00:12]} 56. Nf5 {[%emt 0:00:06]} gxf5 {[%emt 0:00:04]} 57. gxf5+ {[%emt 0:00:06] [#]} Kd5 $1 {[%emt 0:00:04] Weighted Error Value: White=0.82/Black=0.10 (very precise) .  Loses game:     	White=1     	---        Mistake:       	White=5     	Black=1      Inaccurate:     	White=2     	Black=1      OK:         	White=15    	Black=21     Best:        	White=1     	Black=4      Strong:       	---       	Black=2} ({Inferior is} 57... Kxf5 58. Kc4 $11) 0-1

[Event "45th FIDE Olympiad 2024"]
[Site "Budapest"]
[Date "2024.09.16"]
[Round "6.7"]
[White "Lilay, Weldu Gebru"]
[Black "Savva, Panikos"]
[Result "0-1"]
[WhiteElo "1977"]
[BlackElo "1973"]
[PlyCount "112"]
[EventDate "2024.09.05"]
[EventType "team-tourn"]
[EventCountry "HUN"]
[WhiteTeam "Eritrea"]
[BlackTeam "Cyprus"]
[WhiteTeamCountry "ERI"]
[BlackTeamCountry "CYP"]
[TimeControl "40/5400+30:1800+30"]

1. e4 c5 2. Nf3 e6 3. Nc3 Nc6 4. d4 cxd4 5. Nxd4 Qc7 6. Be3 a6 7. a3 Nf6 8. Be2 Be7 9. Qd2 Ne5 10. Bf4 d6 11. O-O O-O 12. h3 Nc4 13. Bxc4 Qxc4 14. e5 dxe5 15. Bxe5 b5 16. Qg5 Bb7 17. Rad1 h6 18. Qg3 Nh5 19. Qg4 Nf6 20. Qg3 Nh5 21. Qe3 Rfd8 22. Qe2 Qxe2 23. Ndxe2 Rac8 24. Rxd8+ Rxd8 25. Rd1 Rxd1+ 26. Nxd1 Nf6 27. c3 Ne4 28. Ne3 f6 29. Bd4 Kf7 30. Kf1 e5 31. Bb6 Ke6 32. f4 g6 33. g4 Bc6 34. Ke1 Bc5 35. Bxc5 Nxc5 36. f5+ gxf5 37. gxf5+ Kf7 38. b4 Ne4 39. h4 Nd6 40. Ng3 Ke7 41. Ke2 Ne4 42. Nxe4 Bxe4 43. h5 Kf7 44. Kf2 Kg7 45. Kg3 Kf7 46. Kg4 Ke7 47. c4 bxc4 48. Nxc4 Bd3 49. Ne3 Be2+ 50. Kh4 Kd6 51. Ng4 Bxg4 52. Kxg4 Kd5 53. Kf3 Kd4 54. a4 Kc4 55. b5 axb5 56. axb5 Kxb5 {0-} 0-1

[Event "45th FIDE Olympiad 2024"]
[Site "Budapest"]
[Date "2024.09.16"]
[Round "6.8"]
[White "Vidit, Santosh Gujrathi"]
[Black "Gledura, Benjamin"]
[Result "1-0"]
[ECO "D13"]
[WhiteElo "2720"]
[BlackElo "2628"]
[Annotator "TA"]
[PlyCount "103"]
[EventDate "2024.09.05"]
[EventType "team-tourn"]
[EventCountry "HUN"]
[SourceTitle "playchess.com"]
[Source "ChessBase"]
[SourceQuality "1"]
[WhiteTeam "India"]
[BlackTeam "Hungary"]
[WhiteTeamCountry "IND"]
[BlackTeamCountry "HUN"]
[TimeControl "40/5400+30:1800+30"]

{[%evp 11,103,17,18,7,11,0,23,31,26,24,23,19,27,24,23,29,45,55,35,32,20,37,49,17,25,23,49,28,41,16,70,69,71,95,81,79,92,78,77,53,61,41,47,43,47,31,62,56,70,63,67,54,95,108,92,98,100,87,82,82,150,145,141,148,208,213,242,249,283,285,260,246,256,246,263,217,383,382,764,762,560,606,784,680,823,775,1888,1766,2118,1804,5131,7274,12556,9938]} 1. d4 {[%emt 0:00:49]} d5 {[%emt 0:00:21]} 2. c4 {[%emt 0:00:25]} c6 {[%emt 0:00:16]} 3. cxd5 {[%emt 0:00:33]} cxd5 {[%emt 0:00:09]} 4. Nc3 {[%emt 0:00:10]} Nf6 {[%emt 0:00:24]} 5. Nf3 {[%emt 0:00:34]} Nc6 {[%emt 0:00:48]} 6. Bf4 {[%emt 0:00:14]} a6 {[%emt 0:01:39]} 7. Qb3 {[%emt 0:03:40]} e6 {[%emt 0:09:33]} 8. e3 {[%emt 0:03:41]} Bd6 {[%emt 0:13:27]} 9. Bxd6 {[%emt 0:21:09] White has an edge.} Qxd6 {[%emt 0:00:07]} 10. Be2 {[%emt 0:01:17]} O-O {[%emt 0:03:21]} 11. O-O {[%emt 0:00:24][%cal Bh1f1,Bf1c1,Bc1c7][%mdl 32]} Rb8 {[%emt 0:09:39]} 12. Rfc1 {[%emt 0:01:44]} Re8 {[%emt 0:05:25]} 13. Na4 {[%emt 0:07:44]} e5 {[%emt 0:11:58]} 14. dxe5 {[%emt 0:01:32]} Nxe5 {[%emt 0:03:03]} 15. Qb6 {[%emt 0:03:44]} Qxb6 {[%emt 0:13:19]} 16. Nxb6 {[%emt 0:00:16] [#] Nxe5 is the strong threat.} Bg4 {[%emt 0:00:16]} 17. Rc7 {[%emt 0:04:06]} Bxf3 {[%emt 0:01:12]} 18. gxf3 {[%emt 0:03:55]} d4 {[%emt 0:01:04]} 19. Rd1 {[%emt 0:05:33]} dxe3 {[%emt 0:01:48]} 20. fxe3 {[%emt 0:00:10]} Nc6 {[%emt 0:02:19]} ({Black should play} 20... Re6 $11 21. f4 Rxb6 22. fxe5 Ne4 (22... Rxb2 $2 23. Bc4 $18)) 21. e4 {[%emt 0:20:19][%cal Oe2a6] White is much more active.} Re7 {[%emt 0:02:07]} 22. Rxe7 {[%emt 0:00:41]} Nxe7 {[%emt 0:00:05]} 23. Kf2 {[%emt 0:00:20]} Nc6 {[%emt 0:01:07]} 24. Rc1 {[%emt 0:03:48][%cal Oe2a6]} Nd4 {[%emt 0:03:31]} 25. Bc4 {[%emt 0:01:11]} Rd8 {[%emt 0:01:13]} 26. Ke3 {[%emt 0:04:19]} Kf8 {[%emt 0:07:01]} 27. Bf1 {[%emt 0:04:00]} Ne6 {[%emt 0:00:00] Repels Rc7} 28. Bh3 {[%emt 0:01:34]} Ne8 {[%emt 0:00:16]} 29. f4 {[%emt 0:01:20]} g5 {[%emt 0:01:33]} 30. fxg5 {[%emt 0:00:24]} Nxg5 {[%emt 0:00:11]} 31. Rc8 {[%emt 0:03:09]} Rxc8 {[%emt 0:02:27] White leaves nothing to chance now.} 32. Bxc8 $14 {[%emt 0:00:02][%mdl 4096] Endgame. KBN-KNN} Nd6 {[%emt 0:00:07][%cal Of7f6]} 33. Bf5 {[%emt 0:02:22]} h6 {[%emt 0:01:41]} 34. h4 {[%emt 0:00:09]} Ne6 {[%emt 0:00:33]} 35. Bg4 {[%emt 0:00:10]} Ng7 {[%emt 0:03:59]} ({Better is} 35... Kg7) 36. Kf4 $16 {[%emt 0:01:09]} f6 {[%emt 0:01:13]} 37. b4 {[%emt 0:01:00]} Kf7 {[%emt 0:00:31] [#]} (37... h5 $16 38. Bh3 Kf7) 38. e5 $1 $18 {[%emt 0:00:54]} fxe5+ {[%emt 0:01:04]} 39. Kxe5 {[%emt 0:00:01]} Nge8 {[%emt 0:00:28]} 40. a4 {[%emt 0:00:54]} Ke7 {[%emt 0:00:25]} 41. Nd5+ {[%emt 0:06:09]} Kd8 {[%emt 0:03:22]} 42. Be2 {[%emt 0:03:56] Dodges Nc4+. And now Nf6 would win.} Nc8 {[%emt 0:08:20]} 43. Bf3 {[%emt 0:03:49]} b6 $2 {[%emt 0:08:50]} (43... Ncd6 {keeps fighting.} 44. Ke6 Nc4) 44. h5 {[%emt 0:07:51]} Nc7 $2 {[%emt 0:03:47]} (44... b5 45. a5 Ncd6) 45. Ne3 {[%emt 0:03:42] White is clearly winning.} Ne7 {[%emt 0:03:12]} 46. Ng4 {[%emt 0:00:25]} Ng8 {[%emt 0:00:44]} 47. Be4 {[%emt 0:00:47]} Ne8 {[%emt 0:00:45]} 48. Bg6 {[%emt 0:03:24] aiming for Bxe8.} Ne7 {[%emt 0:01:16]} 49. Bxe8 {[%emt 0:03:38]} Kxe8 {[%emt 0:00:06]} 50. Kd6 {[%emt 0:00:06]} b5 {[%emt 0:00:38]} 51. axb5 {[%emt 0:01:32]} (51. Nxh6 $2 {loses.} bxa4 52. Ng4 a3 $19) 51... axb5 {[%emt 0:00:07]} 52. Nxh6 {[%emt 0:00:03] Weighted Error Value: White=0.07 (flawless) /Black=0.19 (very precise) .  Mistake:       	---       	Black=5      Inaccurate:     	White=1     	Black=3      OK:         	White=14    	Black=15     Best:        	White=2     	---        Strong:       	White=1     	---} 1-0

[Event "45th FIDE Olympiad 2024"]
[Site "Budapest"]
[Date "2024.09.16"]
[Round "6.8"]
[White "Kefalas, Loukas"]
[Black "Samuel, Merhawi Gebrehiwet"]
[Result "0-1"]
[WhiteElo "1912"]
[BlackElo "1788"]
[PlyCount "100"]
[EventDate "2024.09.05"]
[EventType "team-tourn"]
[EventCountry "HUN"]
[WhiteTeam "Cyprus"]
[BlackTeam "Eritrea"]
[WhiteTeamCountry "CYP"]
[BlackTeamCountry "ERI"]
[TimeControl "40/5400+30:1800+30"]

1. e4 c5 2. Nf3 Nc6 3. Bb5 g6 4. O-O Bg7 5. c3 Qb6 6. a4 Nf6 7. e5 Nd5 8. d4 cxd4 9. cxd4 O-O 10. Nc3 Nxc3 11. bxc3 d5 12. exd6 exd6 13. h3 Bf5 14. Ba3 Rfd8 15. Re1 Qc7 16. g4 Bd7 17. Nd2 d5 18. Nf1 a6 19. Be2 Na5 20. Bf3 Be6 21. Bb4 Nc4 22. a5 Bh6 23. Kg2 Bf4 24. Qa4 Kg7 25. Ne3 Nxe3+ 26. Rxe3 Bxe3 27. fxe3 f5 28. Qa3 Rd7 29. Rf1 Re8 30. Qa2 fxg4 31. hxg4 Qd8 32. Qf2 Qg5 33. Qg3 Bf7 34. Qf4 Qxf4 35. exf4 h5 36. Rb1 hxg4 37. Bxg4 Be6 38. Bf3 Bf5 39. Rb2 Be4 40. Bc5 Re6 41. Ba7 Bxf3+ 42. Kxf3 Rde7 43. Bb8 Re3+ 44. Kg4 Rxc3 45. Be5+ Kg8 46. Rb6 Rc6 47. Rb3 Rh7 48. Rb1 Kf8 49. Re1 b5 50. axb6 Rxb6 {0-} 0-1